Cogmind - Beta 10.2 @@@ ROGUE MODE // 2021.12.16 @ 06:40:52 Player: Azken Zutik Result: Destroyed by G-34 Mercenary with Small Laser Performance ------------- Evolutions (1) 500 Regions Visited (4) 800 Robots Destroyed (0) 0 Value Destroyed (0) 0 Prototype IDs (0) 0 Alien Tech Used (0) 0 Bonus (258) 258 TOTAL SCORE: 1558 Bonus ------- Pacifist 200 Follower Combat Kills 58 Cogmind --------- Core Integrity 0/400 Matter 184/300 Energy 100/100 System Corruption 0% Temperature Cool (6) Movement Core (50) Location -9/Storage Parts ------- > --- POWER (1) -------- (None) > --- PROPULSION (2) --- (None) > --- UTILITY (4) ------ (None) > --- WEAPON (2) ------- (None) > --- INVENTORY (4) ---- (None) Peak State ------------ > --- POWER ------------ Backup Power I > --- PROPULSION ------- Backup Propulsion I Backup Propulsion I > --- UTILITY ---------- (None) > --- WEAPON ----------- Backup Laser I Backup Laser I > --- INVENTORY -------- (None) [Rating: 5] Favorites ----------- Power Backup Power I Engine Backup Power I Propulsion Backup Propulsion I Hover Unit Backup Propulsion I Utility Sensor Array Device Sensor Array Weapon Backup Laser I Energy Gun Backup Laser I Build | -11 -10 -10 -9 -9 ------- Run | Scr Mat Min Mat Sto Slots Evolved 2 | . . . 2 . Power . | . . . . . Propulsion . | . . . . . Utility 2 | . . . 2 . Weapon . | . . . . . Parts Attached 1 | . 1 . . . Power . | . . . . . Engine . | . . . . . Core . | . . . . . Reactor . | . . . . . Propulsion . | . . . . . Treads . | . . . . . Leg . | . . . . . Wheel . | . . . . . Hover . | . . . . . Flight . | . . . . . Utility 1 | . 1 . . . Device 1 | . 1 . . . Storage . | . . . . . Processor . | . . . . . Hackware . | . . . . . Protection . | . . . . . Artifact . | . . . . . Weapon . | . . . . . Energy Gun . | . . . . . Energy Cannon . | . . . . . Ballistic Gun . | . . . . . Ballistic Cannon . | . . . . . Launcher . | . . . . . Special Weapon . | . . . . . Impact Weapon . | . . . . . Slashing Weapon . | . . . . . Piercing Weapon . | . . . . . Special Melee Weapon . | . . . . . Unidentified Prototypes . | . . . . . Parts Lost 6 | . . . . 6 Power 1 | . . . . 1 Propulsion 2 | . . . . 2 Utility 1 | . . . . 1 Weapon 2 | . . . . 2 Highest Loss Streak 5 | . . . . 5 Average Slot Usage (%) 17 | . 9 14 11 20 Engine 2 | . . . . 4 Hover 5 | . . . . 7 Device 5 | . 9 14 11 2 Energy Gun 4 | . . . . 6 Naked Turns 57 | . 16 . . 41 Heaviest Build 3 | . 1 1 1 3 Greatest Support 12 | 3 3 3 3 12 Greatest Overweight (x) . | . . . . . Average Overweight (x) . | . . . . . Largest Inventory Capacity 4 | 4 4 4 4 4 Average Capacity 4 | 4 4 4 4 4 Most Carried . | . . . . . Average Carried . | . . . . . Final Capacity 4 | 4 4 4 4 4 Final Carried . | . . . . . Class Distribution -------------------- 100% | Mutant Dominant Class ---------------- Mutant | -10/Materials Mutant | -10/Mines Mutant | -9/Materials Mutant | -9/Storage Resources | -11 -10 -10 -9 -9 ----------- Run | Scr Mat Min Mat Sto Matter Collected 50 | 50 . . . . Remotely . | . . . . . Salvage Created . | . . . . . Parts . | . . . . . Haulers Intercepted . | . . . . . Recyclers Shooed . | . . . . . Parts Field Recycled . | . . . . . Retrieved Matter . | . . . . . Parts Self-Destructed . | . . . . . Prevented . | . . . . . Kills | -11 -10 -10 -9 -9 ------- Run | Scr Mat Min Mat Sto Combat Hostiles Destroyed . | . . . . . Classes Destroyed . | . . . . . Best Kill Streak . | . . . . . Combat Bots Only . | . . . . . Max Kills in Single Turn . | . . . . . Gunslinging . | . . . . . Exploded . | . . . . . Melee . | . . . . . Uniques/NPCs Destroyed . | . . . . . Combat | -11 -10 -10 -9 -9 -------- Run | Scr Mat Min Mat Sto Damage Taken 600 | . . 33 6 561 Core 427 | . . 23 6 398 Absorbed by Shields . | . . . . . Core Remaining (%) 95 | 100 . 90 . . Volleys Fired . | . . . . . Largest . | . . . . . Hottest . | . . . . . Shots Fired . | . . . . . Gun . | . . . . . Cannon . | . . . . . Launcher . | . . . . . Special . | . . . . . Kinetic . | . . . . . Thermal . | . . . . . Explosive . | . . . . . Electromagnetic . | . . . . . Robot Hit Streak . | . . . . . Robot Miss Streak . | . . . . . Penetration Max . | . . . . . Secondary Targets . | . . . . . Shots Hit Robots . | . . . . . Core Hits 2 | . . . . 2 Critical Hits . | . . . . . Critical Kills . | . . . . . Critical Parts Destroyed . | . . . . . Melee Attacks . | . . . . . Impact . | . . . . . Slashing . | . . . . . Piercing . | . . . . . Sneak Attacks . | . . . . . Combat Hostiles . | . . . . . Follow-up Attacks . | . . . . . Damage Inflicted 18 | . . . . 18 Guns . | . . . . . Cannons . | . . . . . Explosions . | . . . . . Melee . | . . . . . Ramming 18 | . . . . 18 Kinetic . | . . . . . Thermal . | . . . . . Explosive . | . . . . . Electromagnetic . | . . . . . Impact . | . . . . . Slashing . | . . . . . Piercing . | . . . . . Highest Corruption . | . . . . . Average Corruption . | . . . . . Corruption Purged . | . . . . . Overload Shots . | . . . . . Overflow Damage . | . . . . . Projectiles . | . . . . . Explosions . | . . . . . Melee . | . . . . . Knockbacks . | . . . . . Impact . | . . . . . Kinetic . | . . . . . Secondary . | . . . . . Self-Inflicted Damage 9 | . . . . 9 Shots . | . . . . . Rammed 4 | . . . . 4 Targets Rammed 4 | . . . . 4 Kicked . | . . . . . Crushed . | . . . . . Highest Temperature . | . . . . . Average Temperature . | . . . . . Received Heat Transfer 183 | . . . . 183 Siege Activations . | . . . . . Robots Corrupted . | . . . . . Combat Hostiles . | . . . . . Parts Fried . | . . . . . Impact Corruptions . | . . . . . Robots Melted . | . . . . . Combat Hostiles . | . . . . . Parts Melted . | . . . . . Heat Transferred . | . . . . . Parts Sabotaged . | . . . . . Parts Stolen . | . . . . . Parts Stripped . | . . . . . Power Chain Reactions . | . . . . . Missiles Intercepted . | . . . . . Alert | -11 -10 -10 -9 -9 ------- Run | Scr Mat Min Mat Sto Peak Influence 167 | . 30 26 9 167 Initial 11 | . . 11 9 3 Average 47 | . 10 24 9 70 Maximum Alert Level . | . . . . . Low Security (%) 100 | 100 100 100 100 100 Level 1 . | . . . . . Level 2 . | . . . . . Level 3 . | . . . . . Level 4 . | . . . . . Level 5 . | . . . . . High Security . | . . . . . Max Security . | . . . . . Squads Dispatched 3 | . 1 . . 2 Investigation 1 | . 1 . . . Extermination . | . . . . . Reinforcement . | . . . . . Assault 2 | . . . . 2 Garrison . | . . . . . Intercept . | . . . . . Construction Impeded . | . . . . . Haulers Reinforced . | . . . . . Stealth | -11 -10 -10 -9 -9 --------- Run | Scr Mat Min Mat Sto Distress Signals 1 | . . . . 1 Communications Jammed . | . . . . . Distress Signals . | . . . . . Times Spotted 27 | . . 3 4 20 Peak Tracking Total 14 | . 2 3 5 14 Tactical Retreats 3 | . 1 . . 2 Traps | -11 -10 -10 -9 -9 ------- Run | Scr Mat Min Mat Sto Traps Triggered 1 | . 1 . . . Indirectly . | . . . . . Trap Hack Attempts . | . . . . . Triggered . | . . . . . Disarmed . | . . . . . Reprogrammed . | . . . . . Reused . | . . . . . Traps Extracted . | . . . . . Installed . | . . . . . Triggered . | . . . . . Machines | -11 -10 -10 -9 -9 ---------- Run | Scr Mat Min Mat Sto Machines Disabled . | . . . . . Max in Single Turn . | . . . . . Machines Sabotaged . | . . . . . Garrisons Compromised . | . . . . . Overloaded Fab Kills . | . . . . . Fab Network Shutdowns . | . . . . . Hacking | -11 -10 -10 -9 -9 --------- Run | Scr Mat Min Mat Sto Machines Accessed 4 | . . . . 4 Terminals 3 | . . . . 3 Fabricators . | . . . . . Repair Stations 1 | . . . . 1 Recycling Units . | . . . . . Scanalyzers . | . . . . . Garrison Access . | . . . . . Total Hacks 6 | . . . . 6 Successful 4 | . . . . 4 Failed 2 | . . . . 2 Catastrophic . | . . . . . Database Lockouts . | . . . . . Manual 2 | . . . . 2 Terminals 4 | . . . . 4 Fabricators . | . . . . . Repair Stations 2 | . . . . 2 Recycling Units . | . . . . . Scanalyzers . | . . . . . Garrison Access . | . . . . . Terminal Hacks 3 | . . . . 3 Open Door 2 | . . . . 2 Branch Access Points 1 | . . . . 1 Fabricator Hacks . | . . . . . Repair Station Hacks 1 | . . . . 1 Refit 1 | . . . . 1 Recycling Unit Hacks . | . . . . . Scanalyzer . | . . . . . Garrison Access Hacks . | . . . . . Unauthorized Hacks . | . . . . . Terminals . | . . . . . Fabricators . | . . . . . Repair Stations . | . . . . . Recycling Units . | . . . . . Scanalyzers . | . . . . . Garrison Access . | . . . . . Data Cores Recovered . | . . . . . Used . | . . . . . Hacking Detections 2 | . . . . 2 Full Trace Events . | . . . . . Feedback Events . | . . . . . Feedback Blocked . | . . . . . Robot Schematics Acquired . | . . . . . Robots Built . | . . . . . Matter . | . . . . . Time . | . . . . . Total Robot Build Rating . | . . . . . Part Schematics Acquired . | . . . . . Parts Built . | . . . . . Matter . | . . . . . Time . | . . . . . Total Part Build Rating . | . . . . . Parts Repaired . | . . . . . Time . | . . . . . Parts Recycled . | . . . . . Recycled Matter . | . . . . . Retrieved Matter . | . . . . . Retrieved Components . | . . . . . Parts Scanalyzed . | . . . . . Part Schematics Acquired . | . . . . . Parts Damaged . | . . . . . Bothacking | -11 -10 -10 -9 -9 ------------ Run | Scr Mat Min Mat Sto Used RIF Installer . | . . . . . Robots Hacked . | . . . . . Non-combat . | . . . . . Combat . | . . . . . Robot Hacks Applied . | . . . . . Relay Couplers Released . | . . . . . Robots Rewired . | . . . . . Allies Hacked . | . . . . . Hacks Repelled . | . . . . . Allies | -11 -10 -10 -9 -9 -------- Run | Scr Mat Min Mat Sto Total Allies 2 | . . . . 2 Largest Group 2 | . . . . 2 Highest-Rated Group 62 | . . . . 62 Highest-Rated Ally 31 | . . . . 31 Total Orders . | . . . . . Ally Attacks 15 | . . . . 15 Total Damage 280 | . . . . 280 Kills 4 | . . . . 4 Allies Corrupted . | . . . . . Allies Melted . | . . . . . Intel | -11 -10 -10 -9 -9 ------- Run | Scr Mat Min Mat Sto Robot Analysis Total . | . . . . . Derelict Logs Recovered . | . . . . . Drone Launches . | . . . . . Drone Recoveries . | . . . . . Exploration | -11 -10 -10 -9 -9 ------------- Run | Scr Mat Min Mat Sto Turns Passed 161 | 9 32 8 13 99 Spaces Moved 284 | 18 61 15 25 165 Core 238 | 18 61 15 25 119 Treads . | . . . . . Legs . | . . . . . Wheels . | . . . . . Hover 46 | . . . . 46 Flight . | . . . . . Fastest Speed 50 | 50 50 50 50 50 Average Speed 54 | 50 50 50 50 57 Slowest Speed 80 | 50 50 50 50 80 Overloaded Moves . | . . . . . Propulsion Burnouts . | . . . . . Robots Hopped . | . . . . . Cave-ins Triggered . | . . . . . Exploration Rate (%) 13 | 3 16 6 6 38 Regions Visited 4 Branch Regions 2 Pre-discovered Areas . | . . . . . Known Exits Taken . | . . . . . Unknown Exits Taken 4 | 1 1 1 1 . Scrap Searched . | . . . . . Spaces Dug . | . . . . . Terrain Destroyed . | . . . . . Melee . | . . . . . Projectile . | . . . . . AOE . | . . . . . Terrain Rammed . | . . . . . Walls Destroyed . | . . . . . Machines Disabled . | . . . . . Actions | -11 -10 -10 -9 -9 --------- Run | Scr Mat Min Mat Sto Total 285 | 17 61 14 24 169 Wait . | . . . . . Move 280 | 17 60 14 24 165 Hop . | . . . . . Pick Up . | . . . . . Fast Attach 1 | . 1 . . . Attach . | . . . . . Detach . | . . . . . Swap . | . . . . . Drop . | . . . . . Fire . | . . . . . Melee . | . . . . . Ram 4 | . . . . 4 Kick . | . . . . . Crush . | . . . . . Escape Stasis . | . . . . . Rewire . | . . . . . Trap . | . . . . . Miscellaneous . | . . . . . Route ------- -11/Scrapyard -10/Materials -10/Mines -9/Materials -9/Storage (discovered 2 exits: [*Mat] / Rec) History --------- Turn | Location | Event 4 | -11/Scrapyard | Discovered new exit (range 13) 10 | -11/Scrapyard | Entered Materials 35 | -10/Materials | Discovered new exit (range 16) 42 | -10/Materials | Entered Mines 45 | -10/Mines | Discovered new exit (range 8) 50 | -10/Mines | Entered Materials 50 | -9/Materials | Evolved 2 slots: Utility x2 56 | -9/Materials | Discovered new exit (range 11) 63 | -9/Materials | Entered Storage 105 | -9/Storage | Identified exit to Recycling 113 | -9/Storage | Discovered new exit (range 16) 116 | -9/Storage | Core integrity fell below 50% 130 | -9/Storage | Met a pair of Derelict thieves 160 | -9/Storage | Core integrity fell below 20% 162 | -9/Storage | Destroyed by G-34 Mercenary with Small Laser Last Messages --------------- 00130_ A pair of derelicts emerge from hiding: "Whew, we thought you were one of them, but you're obviously not! Quick, help us haul this stuff before they figure out we jammed the door open." 00135_ Backup Laser I destroyed. 00138_ Y-45 Defender destroyed. 00140_ ALERT: Breach in storage area. Dispatching assault force. 00140_ 0C-5NG(g): "So much for stealth, let's take what we have and get out of here before it's too late." 00140_ U-05 Engineer lays Concrete. 00141_ Backup Propulsion I destroyed. 00154_ Backup Power I destroyed. 00157_ C-30 ARC bursts open, deploying its payload. 00157_ G-47 Trooper unfolds itself. 00157_ L-31 Rogue unfolds itself. 00157_ G-34 Mercenary unfolds itself. 00157_ L-31 Rogue unfolds itself. 00157_ I-25 Savior unfolds itself. 00158_ Slammed into L-31 Rogue. 00159_ Backup Laser I destroyed. 00159_ Slammed into L-31 Rogue. Map ----- +----------------------------------------------------+ | ??????????????????????????????????#! !?# #???? | | ??????????????????????????????????#! !## #???? | | ??????????????????????????????????#! !## #???? | | ?????????????????????????????????####### #???? | | ????????????????????????????????" """?## ##??? | | ???????????????????????????????"" """ # #??? | | ????????????????????????????# """ """ # #??? | | ????????????????????????????# / #??? | | ????????????????????????????# # #??? | | ????????????????????????????# # #??? | | ???????????????????????????# ?## ##??? | | ???????????????????????????## ??# #???? | | ?????????????????????????############### #???? | | ?????????????????????????# # #???? | | ?????????????????????????# # #???? | | ?????????????????????????# + #???? | | ?????????????????????????# # #???? | | ?????????????????????????# # #???? | | ?????????????????????????# # #???? | | ?????????????????????????#+############# #???? | | ????????????????????????## ##??????????# #???? | | ??????????#############?# r #?####?????# #???? | | ??????#? # ### #? ??????# #???? | | ??????# # + # ???????? #???? | | ??????# """"" # ###l # "????????? #???? | | ??????# """"" # #?#@ i/ "????????? #???? | | ??????# """"" # #?# gg# "????????? #???? | | ??????# # #?#lg #??????????? #???? | | ??????? [ # #?#gg #??????????? #???? | | ????????? ??# #?# #??????????? ????? | | ????????###+###?# ###g ##?????????????????? | | ######### #####/#### #?????????????????? | | ! #?????????????????? | | %! T #?????????????????? | | [ #?????????????????? | | #### #### ########## #?????????????????? | | ?? #?#######????????#######?????????????????? | | # #????????????????????????????????????????? | | #######????????????????????????????????????????? | | ???????????????????????????????????????????????? | | ???????????????????????????????????????????????? | | ???????????????????????????????????????????????? | | ???????????????????????????????????????????????? | | ???????????????????????????????????????????????? | | ???????????????????????????????????????????????? | | | | | | | | | | | +----------------------------------------------------+ Best States ------------- Heat Dissipation 28 Energy Generation 9 Energy Capacity 100 Matter Stores 178 Matter Capacity 300 Sight Range 16 Robot Scan Range 10 Terrain Scan Density 10 Evasion (%) 50 Item Schematics ----------------- None Robot Schematics ------------------ None Fabricated ------------ Nothing Alien Tech Used ----------------- None Achievements -------------- None Challenges ------------ None Game ------ Seed WeaponRefineryDoublenader Manual? 0 Play Time 00:07:13 Cumulative 136.1 hours Start 2021.12.16 @ 06:36:20 End 2021.12.16 @ 06:40:52 Sessions 1 Manual Loads 0 Difficulty Rogue Special Mode None Game No. 62 Rogue 62 Adventurer 0 Explorer 0 Win Type - Total 4 Types 2/1/0/0/1/0/0/0/0 Lore% 46 Gallery% 67 Achievement% 58 Wizard Run 0 Options --------- ASCII 0 Keyboard 0 Movement Mouse Keybinds 0 Fullscreen 0 Font 28/SmallcapsGlow Map View 72x54 Tactical HUD 1 Map Filters NONE Filters NONE Steam 1 RUN: 9f0b6b9b-a46f-4766-8d7f-75d29a9fc19f